Cogmind - Beta 16 @@@ ROGUE MODE // 2025.11.11 @ 02:52:28 // Winter2019/RPGLIKE Player: Fellun Result: Destroyed by GW-RKI(R) with Subdweller Laser Performance ------------- Evolutions (0) 0 Regions Visited (3) 600 Robots Destroyed (24) 120 Value Destroyed (574) 574 Prototype IDs (1) 20 Alien Tech Used (0) 0 Bonus (0) 0 TOTAL SCORE: 1314 Bonus ------- None Cogmind --------- Core Integrity 0/1000 Matter 264/300 Energy 415/415 System Corruption 0% Temperature Cool (6) Movement Rolling (90) Location -10/Subcaves Parts ------- > --- POWER (2) -------- Ion Engine Improved Ion Engine > --- PROPULSION (2) --- Wheel Compact Wheel > --- UTILITY (4) ------ Improved Heat Sink ECM Suite Utility Shielding Utility Shielding > --- WEAPON (2) ------- Assault Rifle Heavy Assault Rifle > --- INVENTORY (3) ---- Subdweller Power Source Subdweller Power Source Subdweller Laser Peak State ------------ > --- POWER ------------ Ion Engine Improved Ion Engine > --- PROPULSION ------- Wheel Compact Wheel > --- UTILITY ---------- Improved Heat Sink ECM Suite Utility Shielding Utility Shielding > --- WEAPON ----------- Assault Rifle Heavy Assault Rifle > --- INVENTORY -------- Hover Unit [Rating: 14] Favorites ----------- Power Ion Engine Engine Ion Engine Propulsion Compact Wheel Wheel Compact Wheel Utility Utility Shielding Device ECM Suite Protection Utility Shielding Weapon Assault Rifle Energy Gun Small Laser Ballistic Gun Assault Rifle Build | -11 -10 -10 -10 ------- Run | Yrd Mat Min Sub Slots Evolved 6 | 4 . 2 . Power 1 | 1 . . . Propulsion 1 | 1 . . . Utility 3 | 1 . 2 . Weapon 1 | 1 . . . Parts Attached 17 | 6 4 7 . Power 4 | 2 . 2 . Engine 4 | 2 . 2 . Core . | . . . . Reactor . | . . . . Propulsion 2 | 2 . . . Treads . | . . . . Leg . | . . . . Wheel 2 | 2 . . . Hover . | . . . . Flight . | . . . . Utility 6 | . 2 4 . Device 3 | . 2 1 . Storage . | . . . . Processor . | . . . . Hackware . | . . . . Protection 3 | . . 3 . Artifact . | . . . . Weapon 5 | 2 2 1 . Energy Gun 2 | 1 1 . . Energy Cannon . | . . . . Ballistic Gun 3 | 1 1 1 . Ballistic Cannon . | . . . . Launcher . | . . . . Special Weapon . | . . . . Impact Weapon . | . . . . Slashing Weapon . | . . . . Piercing Weapon . | . . . . Special Melee Weapon . | . . . . Unidentified Prototypes 1 | . 1 . . Parts Lost 1 | . . 1 . Power . | . . . . Propulsion . | . . . . Utility 1 | . . 1 . Weapon . | . . . . Highest Loss Streak 1 | . . 1 . To Critical Strikes . | . . . . Average Backups 1 | . 1 1 1 Power . | . . . . Propulsion . | . . 1 . Utility . | . . . . Weapon . | . . . . Tool/Special . | . . . . Unused Backups 4 | . . . 4 Power 2 | . . . 2 Propulsion 1 | . . . 1 Utility . | . . . . Weapon 1 | . . . 1 Tool/Special . | . . . . Average Slot Usage (%) 97 | . 86 98 100 Engine 21 | . 25 22 20 Wheel 21 | . 25 22 20 Device 16 | . 11 14 20 Protection 15 | . . 16 20 Energy Gun 1 | . 9 . . Ballistic Gun 20 | . 15 22 20 Peak Build Rating 14 | 6 10 14 14 Average Rating 11 | 4 7 10 14 On Entrance 7 | . 6 8 14 Avg Prop Armor Cover (%) . | . . . . Naked Turns . | . . . . Heaviest Build 24 | 13 17 24 22 Greatest Support 26 | 26 26 26 26 Greatest Overweight (x) . | . . . . Average Overweight (x) . | . . . . Largest Inventory Capacity 3 | 1 1 1 3 Average Capacity 1 | . 1 1 1 Most Carried 3 | 1 1 1 3 Average Carried 1 | . . 1 1 Final Capacity 3 | 1 1 1 3 Final Carried 3 | 1 1 1 3 Class Distribution -------------------- 100% | Mutant Dominant Class ---------------- Mutant | -10/Materials Mutant | -10/Mines Mutant | -10/Subcaves Resources | -11 -10 -10 -10 ----------- Run | Yrd Mat Min Sub Matter Collected 829 | 260 62 207 300 Remotely 86 | . 20 66 . Salvage Created 614 | . 85 257 272 Parts 47 | . 7 11 29 Haulers Intercepted . | . . . . Recyclers Shooed . | . . . . Parts Field Recycled . | . . . . Retrieved Matter . | . . . . Parts Self-Destructed 16 | . . . 16 Prevented . | . . . . Parts Restored . | . . . . Kills | -11 -10 -10 -10 ------- Run | Yrd Mat Min Sub Combat Hostiles Destroyed 23 | . 4 8 11 Guns 23 | . 4 8 11 Classes Destroyed 5 | . 2 1 2 Turret 1 | . . . 1 Swarmer 13 | . 2 4 7 Grunt 5 | . 2 3 . Sentry 1 | . . 1 . Subdweller 4 | . . . 4 Best Kill Streak 6 | . 2 2 6 Combat Bots Only 6 | . 2 2 6 Max Kills in Single Turn 2 | . 1 1 2 Gunslinging . | . . . . Exploded . | . . . . Melee . | . . . . Uniques/NPCs Destroyed . | . . . . Combat | -11 -10 -10 -10 -------- Run | Yrd Mat Min Sub Hostile Shots Fired 209 | . 22 82 105 Missed 68 | . 8 20 40 Hits 141 | . 14 62 65 Projectile 141 | . 14 62 65 AOE 2 | . . . 2 Critical Strikes 2 | . . 2 . Damage Taken 1764 | . 135 722 907 Core 1384 | . 108 532 744 Absorbed by Shields . | . . . . Redirected to Core 1026 | . 85 394 547 Core Remaining (%) 100 | 100 . . . Volleys Fired 87 | . 16 32 39 Largest 2 | . 2 2 2 Hottest 60 | . 60 43 43 Shots Fired 172 | . 30 64 78 Gun 172 | . 30 64 78 Cannon . | . . . . Launcher . | . . . . Special . | . . . . Kinetic 160 | . 18 64 78 Thermal 12 | . 12 . . Explosive . | . . . . Electromagnetic . | . . . . Robot Hit Streak 16 | . 8 6 16 Robot Miss Streak 5 | . 3 5 3 Penetration Max . | . . . . Secondary Targets 3 | . 1 1 1 Max Gunslinging Chain 1 | . 1 1 1 Shots Hit Robots 105 | . 16 38 51 Core Hits 41 | . 7 15 19 Critical Kills . | . . . . Critical Parts Destroyed . | . . . . Critical Strikes . | . . . . Melee Attacks . | . . . . Impact . | . . . . Slashing . | . . . . Piercing . | . . . . Sneak Attacks . | . . . . Combat Hostiles . | . . . . Follow-up Attacks . | . . . . Damage Inflicted 1341 | . 185 502 654 Guns 1341 | . 185 502 654 Cannons . | . . . . Explosions . | . . . . Melee . | . . . . Ramming . | . . . . Kinetic 1264 | . 108 502 654 Thermal 77 | . 77 . . Explosive . | . . . . Electromagnetic . | . . . . Impact . | . . . . Slashing . | . . . . Piercing . | . . . . Highest Corruption . | . . . . Average Corruption . | . . . . Corruption Purged . | . . . . Corruption Blocked . | . . . . Overload Shots . | . . . . Overflow Damage . | . . . . Projectiles . | . . . . Explosions . | . . . . Melee . | . . . . Knockbacks . | . . . . Impact . | . . . . Kinetic . | . . . . Secondary . | . . . . Self-Inflicted Damage . | . . . . Shots . | . . . . Rammed . | . . . . Targets Rammed . | . . . . Kicked . | . . . . Crushed . | . . . . Highest Temperature 219 | . 102 219 . Average Temperature 86 | . 46 106 . Received Heat Transfer 579 | . 27 330 222 Siege Activations . | . . . . Martial Activations . | . . . . Shielding Activations . | . . . . Robots Disrupted . | . . . . Combat Hostiles . | . . . . Robots Corrupted . | . . . . Combat Hostiles . | . . . . Parts Fried . | . . . . Impact Corruptions . | . . . . Robots Melted . | . . . . Combat Hostiles . | . . . . Parts Melted 1 | . 1 . . Heat Transferred 175 | . 175 . . Parts Sabotaged . | . . . . Parts Stolen . | . . . . Parts Stripped . | . . . . Power Chain Reactions . | . . . . Alert | -11 -10 -10 -10 ------- Run | Yrd Mat Min Sub Maximum Alert Level . | . . . . Low Security (%) 100 | 100 100 100 . Level 1 . | . . . . Level 2 . | . . . . Level 3 . | . . . . Level 4 . | . . . . Level 5 . | . . . . High Security . | . . . . Max Security . | . . . . Peak Influence 70 | . 70 55 . Initial 5 | . . 5 . Average 19 | . 38 14 . Influence Increases 489 | . 114 205 170 Destroy 0b10 Robot/C 400 | . 80 160 160 Destroy Leader 70 | . 20 40 10 Successful Hack 19 | . 14 5 . Influence Decreases 489 | . 100 219 170 Entered New Map 9 | . . 9 . Time Decay 451 | . 100 181 170 Lost Part 10 | . . 10 . Purge Threat 19 | . . 19 . Squads Dispatched 1 | . 1 . . Investigation . | . . . . Extermination . | . . . . Reinforcement 1 | . 1 . . Assault . | . . . . Garrison . | . . . . Intercept . | . . . . Searches Triggered . | . . . . Construction Impeded . | . . . . Haulers Reinforced . | . . . . Active Scanning Responses . | . . . . Cargo Convoy Interrupts . | . . . . Stealth | -11 -10 -10 -10 --------- Run | Yrd Mat Min Sub Distress Signals . | . . . . Communications Jammed . | . . . . Distress Signals . | . . . . Times Spotted 49 | . 5 12 32 Peak Tracking Total 4 | . 3 3 4 Tactical Retreats 4 | . . . 4 ECM-based Alert Blocks 50 | . . . 50 Traps | -11 -10 -10 -10 ------- Run | Yrd Mat Min Sub Traps Triggered . | . . . . Indirectly . | . . . . Trap Hack Attempts . | . . . . Triggered . | . . . . Disarmed . | . . . . Reprogrammed . | . . . . Reused . | . . . . Traps Extracted . | . . . . Installed . | . . . . Triggered . | . . . . Machines | -11 -10 -10 -10 ---------- Run | Yrd Mat Min Sub Machines Disabled 1 | . . . 1 Max in Single Turn 1 | . . . 1 Machines Repaired . | . . . . Machines Dismantled . | . . . . Machines Sabotaged . | . . . . Overloaded Fab Kills . | . . . . Hacking | -11 -10 -10 -10 --------- Run | Yrd Mat Min Sub Machines Accessed 3 | . 2 1 . Terminals 3 | . 2 1 . Fabricators . | . . . . Repair Stations . | . . . . Recycling Units . | . . . . Scanalyzers . | . . . . Garrison Access . | . . . . Total Hacks 9 | . 4 5 . Successful 5 | . 2 3 . Failed 4 | . 2 2 . Catastrophic 2 | . 1 1 . Database Lockouts . | . . . . Manual 4 | . 1 3 . Terminals 9 | . 4 5 . Fabricators . | . . . . Repair Stations . | . . . . Recycling Units . | . . . . Scanalyzers . | . . . . Garrison Access . | . . . . Terminal Hacks 5 | . 2 3 . Record 1 | . . 1 . Branch Access Points 1 | . 1 . . Unreport Threat 1 | . . 1 . Registered Components 1 | . 1 . . Zone Layout 1 | . . 1 . Fabricator Hacks . | . . . . Repair Station Hacks . | . . . . Recycling Unit Hacks . | . . . . Scanalyzer . | . . . . Garrison Access Hacks . | . . . . Unauthorized Hacks . | . . . . Terminals . | . . . . Fabricators . | . . . . Repair Stations . | . . . . Recycling Units . | . . . . Scanalyzers . | . . . . Garrison Access . | . . . . Data Cores Recovered . | . . . . Used . | . . . . Hacking Detections 3 | . 2 1 . Full Trace Events 1 | . . 1 . Feedback Events . | . . . . Feedback Blocked . | . . . . Robot Schematics Acquired . | . . . . Robots Built . | . . . . Authchips . | . . . . Time . | . . . . Total Robot Build Rating . | . . . . Part Schematics Acquired . | . . . . Parts Built . | . . . . Authchips . | . . . . Time . | . . . . Total Part Build Rating . | . . . . Part Studies Acquired . | . . . . Parts Repaired . | . . . . Time . | . . . . Parts Recycled . | . . . . Recycled Matter . | . . . . Retrieved Matter . | . . . . Retrieved Components . | . . . . Parts Scanalyzed . | . . . . Part Schematics Acquired . | . . . . Parts Damaged . | . . . . Bothacking | -11 -10 -10 -10 ------------ Run | Yrd Mat Min Sub Used RIF Installer . | . . . . Robots Hacked . | . . . . Non-combat . | . . . . Combat . | . . . . Robot Hacks Applied . | . . . . Relay Couplers Released . | . . . . Fabnet Peak Effective % . | . . . . Robots Rewired . | . . . . Allies Hacked . | . . . . Hacks Repelled . | . . . . Allies | -11 -10 -10 -10 -------- Run | Yrd Mat Min Sub Total Allies . | . . . . Largest Group . | . . . . Highest-Rated Group . | . . . . Highest-Rated Ally . | . . . . Total Orders . | . . . . Ally Attacks . | . . . . Total Damage . | . . . . Kills . | . . . . Allies Corrupted . | . . . . Allies Melted . | . . . . Intel | -11 -10 -10 -10 ------- Run | Yrd Mat Min Sub Active Infowar (turns) 1262 | . 96 606 560 ECM 1262 | . 96 606 560 Robot Analysis Total . | . . . . Derelict Logs Recovered 3 | . . 1 2 Drone Launches . | . . . . Drone Recoveries . | . . . . Exploration | -11 -10 -10 -10 ------------- Run | Yrd Mat Min Sub Turns Passed 1420 | 52 202 606 560 Spaces Moved 1181 | 48 155 510 468 Core 4 | 4 . . . Treads . | . . . . Legs . | . . . . Wheels 1177 | 44 155 510 468 Hover . | . . . . Flight . | . . . . Fastest Speed 50 | 50 90 90 90 Average Speed 89 | 87 90 90 90 Slowest Speed 100 | 100 90 90 90 Overloaded Moves . | . . . . Propulsion Burnouts . | . . . . Robots Hopped . | . . . . Potential Cave-ins . | . . . . Cave-ins Triggered . | . . . . Exploration Rate (%) 34 | 4 26 80 27 Regions Visited 3 Branch Regions 2 Pre-discovered Areas 1 | . . 1 . Known Exits Taken 1 | . 1 . . Unknown Exits Taken 2 | 1 . 1 . Scrap Searched 3 | . . 3 . Spaces Dug . | . . . . Terrain Destroyed . | . . . . Melee . | . . . . Projectile . | . . . . AOE . | . . . . Terrain Rammed . | . . . . Walls Destroyed . | . . . . Machines Disabled . | . . . . Actions | -11 -10 -10 -10 --------- Run | Yrd Mat Min Sub Total 1359 | 54 186 590 529 Wait 39 | . . 27 12 Move 1178 | 47 154 509 468 Hop . | . . . . Pick Up 5 | 1 1 . 3 Fast Attach 11 | 6 2 3 . Attach 1 | . 1 . . Detach . | . . . . Swap 7 | . 3 4 . Drop 4 | . 2 1 1 Fire 87 | . 16 32 39 Melee . | . . . . Ram . | . . . . Kick . | . . . . Crush . | . . . . Escape Stasis . | . . . . Rewire . | . . . . Trap . | . . . . Miscellaneous 27 | . 7 14 6 Route ------- -11/Scrapyard -10/Materials (discovered 2 exits: *Min x2) -10/Mines (discovered 3 exits: [Mat] / [*Exi] / [*Sub]) -10/Subcaves (discovered 1 exit: [*Rec]) History --------- Turn | Location | Event 1 | -11/Scrapyard | Upgraded with Power slot (x1) 1 | -11/Scrapyard | Upgraded with Propulsion slot (x1) 1 | -11/Scrapyard | Upgraded with Utility slot (x1) 1 | -11/Scrapyard | Upgraded with Weapon slot (x1) 7 | -11/Scrapyard | Discovered new exit (range 16) 53 | -11/Scrapyard | Entered Materials 186 | -10/Materials | Identified exit to Mines 255 | -10/Materials | Entered Mines 302 | -10/Mines | Build established: Mutant 356 | -10/Mines | Deemed a non-threat by the Exiles lab entrance 356 | -10/Mines | Discovered new exit (range 5) 417 | -10/Mines | Joined a pair of Derelicts in attacking an 0b10 outpost 534 | -10/Mines | Reached level 2 557 | -10/Mines | Upgraded with Utility slot (x2) 717 | -10/Mines | Core integrity fell below 50% 813 | -10/Mines | Discovered new exit (range 13) 855 | -10/Mines | Discovered new exit (range 6) 861 | -10/Mines | Entered Subcaves 862 | -10/Subcaves | Approached by a straggling Scientist 863 | -10/Subcaves | Reached level 3 883 | -10/Subcaves | Discovered new exit (range 8) 906 | -10/Subcaves | Core integrity fell below 20% 939 | -10/Subcaves | Learned location of 1 exit from Materials 1204 | -10/Subcaves | Learned Materials trap positions 1421 | -10/Subcaves | Destroyed by GW-RKI(R) with Subdweller Laser Last Messages --------------- 00963_ Subatomizers dissect the Wheel. 01014_ SH-YWT(R) destroyed. 01017_ Acquired 43 matter. 01057_ T4-HXU(R) destroyed. 01060_ Subatomizers dissect the Sub. Power Source. 01094_ 3W-9H5(R) destroyed. 01099_ Acquired 75 matter. 01111_ Subatomizers dissect the Sub. Power Source. 01204_ Acquired derelict log, extracted data. Data stored: Materials trap records. 01305_ Dropped Hover Unit. 01306_ Subatomizers dissect the Sub. Power Source. 01306_ Acquired Sub. Power Source. 01314_ Upgraded: Inventory Capacity (+2) 01316_ Acquired Sub. Laser. 01318_ Acquired Sub. Power Source. 01319_ Acquired 22 matter. 01409_ Upgraded: Core Integrity (+100) 01418_ YT-DBC(R) destroyed. 01421_ Subatomizers dissect the Sub. Monowheel. Map ----- +----------------------------------------------------+ | | | | | | | | | | | | | | | ?????????????????????????????????????????????????? | | ?????????????????????????????????????????????????? | | ?????????????????????????????????????????????????? | | ?????????????????????????????????????????????????? | | ?????????????????????????????????????????""??????? | | ????????????????????????????????????????"""""????? | | ???????????????????????????????????????#"" ""????? | | ???????????????????????????????????????#""" ????? | | ???????????????????????????????????????#""""#????? | | ???????????????????????????????????????#""""##???? | | ???????????????????????????????????????#" "" ##### | | ???????????????????????????????????????##"" # | | ????????????????????????????????#########" # | | ????????????????????????????????# ## ## | | ?????????????????????##?????????# ;""#### " | | ????????????????###### ########## ## | | ???????????????## | | ???????????????# &R! &%& ## | | ???????????????# !&%[@ # & | | ?????????? &### #" && | | ?????????? ??????# #""""" | | ??????????? ??????????## ## #"" # ## | | ??????????????????????????## ######### | | ???????????????????????????## #???????#### | | ????????????????????????# ## ###??????????? | | ????????????????????????# ##?####???????? | | ????????????????????????## #### #???????? | | ?????????????????????????####### #???????? | | ???????????????????????????????## #???????? | | ????????????????????????????????# ##??????? | | ???????????????????????????????## ####???? | | ?????????????????????? ???????# #???? | | ???????????????????? ???????## ##???? | | ???????????????????? ???????###### ##???? | | ??????????????????? ???????????## #???? | | ???????????????????? ##?????????## #???? | | ?????????????????????? ?????????# ##???? | | ??????????????????????? ????????# ###????? | | ????????????????????????# ????????## ##?????? | | ????????????????????????# ????????# ##????? | | ??????????????????????### #?####### ##???? | | ?????????????????????## ## ## #???? | | ?????????????????????# ##### #???? | +----------------------------------------------------+ Best States ------------- Heat Dissipation 51 Energy Generation 17 Energy Capacity 415 Matter Stores 300 Matter Capacity 300 Sight Range 16 Terrain Scan Density 10 ECM Strength 1 Armor Coverage 150 Utility Shielding 33 Evasion (%) 42 Item Schematics ----------------- None Robot Schematics ------------------ None Fabricated ------------ Nothing Repaired ---------- Nothing Studied --------- None Alien Tech Used ----------------- None Achievements -------------- None Challenges ------------ None RPGLIKE | -11 -10 -10 -10 --------- Run | Yrd Mat Min Sub Levels Raised 2 | . . 1 1 XP Earned 6920 | 3000 570 1500 1850 XP Spent 6000 | 2250 . 1900 1850 Upgrades 19 | 5 . 2 12 Power Slot 1 | 1 . . . Propulsion Slot 1 | 1 . . . Utility Slot 3 | 1 . 2 . Weapon Slot 1 | 1 . . . Core Integrity 8 | . . . 8 Heat Dissipation 2 | . . . 2 Inventory Capacity 3 | 1 . . 2 Protomatter Created 210 | . 45 53 112 Integrity Restored 500 | . 119 273 108 Core 383 | . 108 167 108 Parts 117 | . 11 106 . Protomatter Decayed 119 | . 4 39 76 Game ------ Seed ClaymoresJammingHarness Manual? 0 Play Time 00:10:25 Cumulative 750.5 hours Start 2025.11.11 @ 02:44:39 End 2025.11.11 @ 02:52:28 Sessions 1 Manual Loads 0 Difficulty Rogue Special Mode Winter2019/RPGLIKE Game No. 66 Rogue 54 Adventurer 9 Explorer 3 Win Type - Total 10 Types 4/0/0/2/0/1/1/0/1/1 Lore% 60 Gallery% 61 Achievement% 50 Wizard Run 0 Options --------- Layout 0 ASCII 0 Keyboard 0 Movement Mouse Keybinds 0 Fullscreen 2 Font 18/SmallcapsGlow Map View 76x50 Zoom Use 0% Tactical HUD 1 Map Filters NONE Filters NONE Steam 1 RUN: 1e2316af-7403-4e2a-b2f0-c1b89289fa7c